Cogmind - Beta 9.4 @@@ ROGUE MODE // 2020.03.20 @ 23:07:19 Player: Trione Result: Destroyed by G-50 Soldier with Heavy Laser Performance ------------- Evolutions (1) 500 Regions Visited (6) 1200 Robots Destroyed (103) 515 Value Destroyed (2538) 2538 Prototype IDs (15) 300 Alien Tech Used (0) 0 Bonus (-385) -385 TOTAL SCORE: 4668 Bonus ------- High Alert Combat Kills 150 Follower Combat Kills 50 Friendly Fire -585 Cogmind --------- Core Integrity 0/400 Matter 217/300 Energy 259/275 System Corruption 5% Temperature Cool (46) Movement Treading (220) Ox3 Location -8/Mines Parts ------- > --- POWER (1) -------- Deuterium Engine > --- PROPULSION (2) --- Light Treads Light Treads > --- UTILITY (4) ------ High-capacity Storage Unit Humpback Hardened Medium Armor Plating > --- WEAPON (2) ------- Mini Grenade Launcher > --- INVENTORY (32) --- Light Nuclear Core Light Nuclear Core Light Treads Light Treads Advanced Myomer Leg Armored Wheel Armored Wheel Armored Wheel Armored Wheel Large Storage Unit High-capacity Storage Unit High-capacity Storage Unit Humpback High-capacity Battery (400) Medium Matter Pod (100) Gravity Neutralizing Apparatus Experimental Targeting Computer Light Armor Plating Hardened Medium Armor Plating Hardened Medium Armor Plating Hacking Suite Heavy EM Pulse Gun Advanced Beam Cannon Advanced Beam Cannon Gauss Rifle 8R-AWN's Boregun Light Cannon Light Cannon Datajack Katana Katana Peak State ------------ > --- POWER ------------ Deuterium Engine > --- PROPULSION ------- Improved Treads Improved Treads > --- UTILITY ---------- High-capacity Storage Unit Humpback Hardened Medium Armor Plating > --- WEAPON ----------- Katana Katana > --- INVENTORY -------- Deuterium Engine Light Nuclear Core Light Treads Light Treads Advanced Myomer Leg Armored Wheel Armored Wheel Armored Wheel Armored Wheel High-capacity Storage Unit High-capacity Storage Unit Humpback High-capacity Battery Small Matter Pod Medium Matter Pod Gravity Neutralizing Apparatus Experimental Targeting Computer Light Armor Plating Hardened Medium Armor Plating Hardened Medium Armor Plating Hacking Suite Heavy EM Pulse Gun Heavy EM Pulse Gun Advanced Beam Cannon Advanced Beam Cannon 8R-AWN's Boregun Light Cannon Light Cannon Rocket Launcher Mini Grenade Launcher Datajack [Rating: 27] Favorites ----------- Power Deuterium Engine Engine Deuterium Engine Propulsion Armored Wheel Treads Light Treads Wheel Armored Wheel Utility Large Storage Unit Storage Large Storage Unit Processor Armor Integrity Analyzer Protection Hardened Medium Armor Plating Weapon Advanced Beam Cannon Energy Gun EM Pulse Gun Energy Cannon Advanced Beam Cannon Ballistic Gun Light Assault Rifle Ballistic Cannon Light Cannon Launcher Mini Grenade Launcher Slashing Weapon Katana Special Melee Weapon Datajack Build | -11 -10 -10 -9 -9 -9 -8 ------- Run | Scr Mat Min Mat Min Exi Min Slots Evolved 2 | . . . 2 . . . Power . | . . . . . . . Propulsion . | . . . . . . . Utility 2 | . . . 2 . . . Weapon . | . . . . . . . Parts Attached 115 | 7 16 5 60 5 13 9 Power 5 | 1 . 1 2 . 1 . Engine 5 | 1 . 1 2 . 1 . Core . | . . . . . . . Reactor . | . . . . . . . Propulsion 44 | 2 8 4 26 . 2 2 Treads 23 | . 4 2 13 . 2 2 Leg . | . . . . . . . Wheel 21 | 2 4 2 13 . . . Hover . | . . . . . . . Flight . | . . . . . . . Utility 20 | 2 2 . 8 2 5 1 Device . | . . . . . . . Storage 13 | 2 2 . 4 2 3 . Processor 1 | . . . . . 1 . Hackware . | . . . . . . . Protection 6 | . . . 4 . 1 1 Artifact . | . . . . . . . Weapon 46 | 2 6 . 24 3 5 6 Energy Gun 4 | 1 . . 2 . . 1 Energy Cannon 10 | . . . 9 . . 1 Ballistic Gun 9 | 1 2 . 5 . . 1 Ballistic Cannon 10 | . 4 . 5 1 . . Launcher 7 | . . . 2 1 1 3 Special Weapon . | . . . . . . . Impact Weapon . | . . . . . . . Slashing Weapon 5 | . . . 1 1 3 . Piercing Weapon . | . . . . . . . Special Melee Weapon 1 | . . . . . 1 . Unidentified Prototypes 2 | . . . 2 . . . Parts Lost 9 | . . 1 4 . . 4 Power 2 | . . 1 1 . . . Propulsion 2 | . . . . . . 2 Utility 2 | . . . 1 . . 1 Weapon 3 | . . . 2 . . 1 Highest Loss Streak 3 | . . 1 3 . . 3 Average Slot Usage (%) 95 | . 99 99 99 100 85 87 Engine 11 | . 14 13 10 11 11 11 Treads 6 | . 13 1 4 . 4 22 Wheel 16 | . 14 26 17 22 17 . Storage 30 | . 28 28 32 43 25 22 Protection 5 | . . . 10 . 5 11 Energy Cannon 6 | . . . 11 11 6 10 Ballistic Gun 3 | . 11 . 2 . . 8 Ballistic Cannon 7 | . 15 28 6 4 . . Slashing Weapon 2 | . . . 1 6 5 . Special Melee Weapon 1 | . . . . . 7 . Naked Turns . | . . . . . . . Heaviest Build 137 | 16 43 43 89 112 133 137 Greatest Support 46 | 20 40 40 40 24 46 46 Greatest Overweight (x) 5 | . 3 1 3 4 5 3 Average Overweight (x) 2 | . . 1 2 3 3 2 Largest Inventory Capacity 36 | 8 16 16 24 32 36 32 Average Capacity 23 | 5 14 16 23 31 29 32 Most Carried 36 | 6 16 16 24 32 36 32 Average Carried 22 | 3 13 15 21 30 25 31 Final Capacity 32 | 8 16 16 24 32 32 32 Final Carried 32 | 6 16 16 24 32 32 32 Class Distribution -------------------- 70% | Hauler-Mutant 29% | Mutant Dominant Class ---------------- Mutant | -10/Materials Mutant | -10/Mines Hauler-Mutant | -9/Materials Hauler-Mutant | -9/Mines Hauler-Mutant | -9/Exiles Hauler-Mutant | -8/Mines Resources | -11 -10 -10 -9 -9 -9 -8 ----------- Run | Scr Mat Min Mat Min Exi Min Matter Collected 2160 | 279 406 85 998 120 161 111 Remotely . | . . . . . . . Salvage Created 3378 | 74 741 199 1605 370 131 258 Parts 196 | 3 41 6 107 19 4 16 Haulers Intercepted 8 | . 2 . 6 . . . Recyclers Shooed 3 | . . . 1 1 . 1 Parts Field Recycled . | . . . . . . . Retrieved Matter . | . . . . . . . Parts Self-Destructed . | . . . . . . . Prevented . | . . . . . . . Kills | -11 -10 -10 -9 -9 -9 -8 ------- Run | Scr Mat Min Mat Min Exi Min Combat Hostiles Destroyed 79 | . 15 2 39 8 7 8 Melee 1 | . . . . . 1 . Guns 15 | . 6 . 7 . . 2 Cannons 45 | . 9 2 25 7 . 2 AOE 18 | . . . 7 1 6 4 Classes Destroyed 13 | 1 6 . 3 1 1 1 Worker 5 | . 2 . 2 1 . . Hauler 8 | . 2 . 6 . . . Recycler 6 | 1 1 2 1 1 . . Operator 2 | . 1 . 1 . . . Watcher 3 | . 2 . 1 . . . Swarmer 17 | . 3 . 11 . . 3 Grunt 40 | . 12 2 17 6 . 3 Brawler 2 | . . . . 1 . 1 Duelist 2 | . . . 1 1 . . Protector 1 | . . . 1 . . . Sentry 9 | . . . 9 . . . Hunter 1 | . . . . . . 1 Assembled 6 | . . . . . 6 . Best Kill Streak 10 | 1 4 3 10 7 6 3 Combat Bots Only 9 | . 4 2 9 7 6 3 Max Kills in Single Turn 5 | 1 1 1 3 1 5 1 Gunslinging . | . . . . . . . Exploded 5 | . . . 3 1 5 1 Melee 1 | . . . . . 1 . Uniques/NPCs Destroyed 1 | . . . . . 1 . 8R-AWN (-9/Exiles) Combat | -11 -10 -10 -9 -9 -9 -8 -------- Run | Scr Mat Min Mat Min Exi Min Damage Taken 3258 | . 506 65 1057 226 694 710 Core 502 | . 100 . 170 20 76 136 Absorbed by Shields . | . . . . . . . Core Remaining (%) 80 | 100 . 60 . . . . Volleys Fired 206 | 9 71 5 85 16 1 19 Largest 2 | 2 2 2 2 2 1 2 Hottest 136 | 60 70 70 136 103 33 113 Shots Fired 368 | 10 122 10 164 29 1 32 Gun 133 | 10 74 . 35 . . 14 Cannon 223 | . 48 10 125 28 . 12 Launcher 12 | . . . 4 1 1 6 Special . | . . . . . . . Kinetic 246 | 9 102 10 106 15 . 4 Thermal 75 | . . . 50 13 . 12 Explosive 12 | . . . 4 1 1 6 Electromagnetic 35 | 1 20 . 4 . . 10 Robot Hit Streak 16 | 3 9 7 16 8 . 10 Robot Miss Streak 5 | 4 5 1 4 1 . 2 Penetration Max 1 | . . . . . . 1 Secondary Targets . | . . . . . . . Shots Hit Robots 256 | 5 70 6 106 21 25 23 Core Hits 147 | 2 34 5 68 11 13 14 Critical Hits 11 | . 1 1 6 1 . 2 Critical Kills 7 | . 1 . 4 1 . 1 Critical Parts Destroyed 4 | . . 1 2 . . 1 Melee Attacks 42 | . . . 3 7 32 . Impact . | . . . . . . . Slashing 36 | . . . 3 7 26 . Piercing . | . . . . . . . Sneak Attacks 10 | . . . . 2 8 . Combat Hostiles . | . . . . . . . Follow-up Attacks 3 | . . . . . 3 . Damage Inflicted 6761 | 40 999 125 2693 747 1104 1053 Guns 1048 | 40 463 . 363 . . 182 Cannons 2914 | . 536 125 1576 453 . 224 Explosions 1872 | . . . 754 97 376 645 Melee 925 | . . . . 197 728 . Ramming 2 | . . . . . . 2 Kinetic 2410 | 28 807 125 1159 228 . 63 Thermal 1338 | . . . 889 225 . 224 Explosive 1701 | . . . 583 97 376 645 Electromagnetic 385 | 12 192 . 62 . . 119 Impact . | . . . . . . . Slashing 925 | . . . . 197 728 . Piercing . | . . . . . . . Highest Corruption 5 | . . . 1 1 1 5 Average Corruption 1 | . . . 1 1 1 4 Corruption Purged . | . . . . . . . Effects 21 | . . . 2 2 4 13 Message Errors 7 | . . . 2 . 3 2 Matter Fused 5 | . . . . . . 5 Heat Flow Errors 2 | . . . . . . 2 Energy Discharges 1 | . . . . . . 1 Parts Rejected 1 | . . . . . . 1 Data Loss (minor) 1 | . . . . 1 . . Targeting Errors 3 | . . . . . 1 2 Weapon Failures 1 | . . . . 1 . . Overload Shots . | . . . . . . . Overflow Damage 92 | . . . 43 . 16 33 Projectiles . | . . . . . . . Explosions 92 | . . . 43 . 16 33 Melee . | . . . . . . . Knockbacks 17 | . 5 . 7 5 . . Impact . | . . . . . . . Kinetic 15 | . 4 . 7 4 . . Secondary 2 | . 1 . . 1 . . Self-Inflicted Damage 120 | . . . 45 . . 75 Shots 4 | . . . 2 . . 2 Rammed 1 | . . . . . . 1 Targets Rammed 1 | . . . . . . 1 Kicked . | . . . . . . . Crushed . | . . . . . . . Highest Temperature 444 | 20 108 30 444 283 . 415 Average Temperature 98 | 15 33 13 108 116 . 150 Received Heat Transfer 987 | . 240 36 381 114 . 216 Effects 6 | . . . 6 . . . Shutdowns 2 | . . . 2 . . . Energy Bleed 3 | . . . 3 . . . Short Circuit 1 | . . . 1 . . . Siege Activations . | . . . . . . . Robots Corrupted . | . . . . . . . Combat Hostiles . | . . . . . . . Parts Fried 3 | . 1 . 1 . . 1 Impact Corruptions . | . . . . . . . Robots Melted . | . . . . . . . Combat Hostiles . | . . . . . . . Parts Melted 1 | . . . 1 . . . Heat Transferred 2297 | . . . 1483 407 . 407 Parts Sabotaged . | . . . . . . . Parts Stolen . | . . . . . . . Parts Stripped . | . . . . . . . Power Chain Reactions 1 | . . . 1 . . . Missiles Intercepted . | . . . . . . . Alert | -11 -10 -10 -9 -9 -9 -8 ------- Run | Scr Mat Min Mat Min Exi Min Peak Influence 744 | 5 239 116 744 320 . 157 Average Influence 230 | 1 109 81 391 271 . 99 Maximum Alert Level 3 | . 1 . 3 1 . . Low Security (%) 52 | 100 84 100 17 8 . 100 Level 1 33 | . 15 . 43 91 . . Level 2 8 | . . . 23 . . . Level 3 5 | . . . 15 . . . Level 4 . | . . . . . . . Level 5 . | . . . . . . . High Security . | . . . . . . . Max Security . | . . . . . . . Squads Dispatched 7 | . 4 . 3 . . . Investigation . | . . . . . . . Extermination . | . . . . . . . Reinforcement 6 | . 4 . 2 . . . Assault 1 | . . . 1 . . . Garrison . | . . . . . . . Intercept . | . . . . . . . Construction Impeded . | . . . . . . . Haulers Reinforced . | . . . . . . . Stealth | -11 -10 -10 -9 -9 -9 -8 --------- Run | Scr Mat Min Mat Min Exi Min Distress Signals 7 | . 2 . 5 . . . Communications Jammed . | . . . . . . . Distress Signals . | . . . . . . . Times Spotted 116 | . 28 2 61 11 3 11 Peak Tracking Total 9 | . 4 2 6 9 5 3 Tactical Retreats 3 | . . . . 1 1 1 Traps | -11 -10 -10 -9 -9 -9 -8 ------- Run | Scr Mat Min Mat Min Exi Min Traps Triggered 2 | . 1 . 1 . . . Indirectly . | . . . . . . . Trap Hack Attempts . | . . . . . . . Triggered . | . . . . . . . Disarmed . | . . . . . . . Reprogrammed . | . . . . . . . Reused 1 | . . . . . 1 . Traps Extracted . | . . . . . . . Installed 5 | . . . . . 5 . Triggered . | . . . . . . . Machines | -11 -10 -10 -9 -9 -9 -8 ---------- Run | Scr Mat Min Mat Min Exi Min Machines Disabled 8 | . 1 . 4 . 3 . Max in Single Turn 3 | . 1 . 2 . 3 . Machines Sabotaged . | . . . . . . . Garrisons Compromised . | . . . . . . . Overloaded Fab Kills . | . . . . . . . Fab Network Shutdowns . | . . . . . . . Hacking | -11 -10 -10 -9 -9 -9 -8 --------- Run | Scr Mat Min Mat Min Exi Min Machines Accessed 11 | . 2 . 7 1 1 . Terminals 9 | . 2 . 6 1 . . Fabricators . | . . . . . . . Repair Stations . | . . . . . . . Recycling Units 1 | . . . 1 . . . Scanalyzers . | . . . . . . . Garrison Access . | . . . . . . . Total Hacks 28 | . 5 . 20 2 1 . Successful 18 | . 2 . 14 1 1 . Failed 10 | . 3 . 6 1 . . Catastrophic . | . . . . . . . Database Lockouts . | . . . . . . . Manual 23 | . 5 . 16 2 . . Terminals 24 | . 5 . 17 2 . . Fabricators . | . . . . . . . Repair Stations . | . . . . . . . Recycling Units 3 | . . . 3 . . . Scanalyzers . | . . . . . . . Garrison Access . | . . . . . . . Terminal Hacks 6 | . . . 5 . 1 . Record 1 | . . . . . 1 . Part Schematic 1 | . . . 1 . . . Locate Traps 1 | . . . 1 . . . Zone Layout 3 | . . . 3 . . . Fabricator Hacks . | . . . . . . . Repair Station Hacks . | . . . . . . . Recycling Unit Hacks 1 | . . . 1 . . . Retrieve Components 1 | . . . 1 . . . Scanalyzer . | . . . . . . . Garrison Access Hacks . | . . . . . . . Unauthorized Hacks 29 | . 6 . 20 3 . . Terminals 11 | . 2 . 8 1 . . Track 7 | . 1 . 5 1 . . Botnet 4 | . 1 . 3 . . . Fabricators . | . . . . . . . Repair Stations . | . . . . . . . Recycling Units . | . . . . . . . Scanalyzers . | . . . . . . . Garrison Access . | . . . . . . . Data Cores Recovered . | . . . . . . . Used . | . . . . . . . Hacking Detections 8 | . 2 . 5 1 . . Full Trace Events . | . . . . . . . Feedback Events . | . . . . . . . Feedback Blocked . | . . . . . . . Robot Schematics Acquired . | . . . . . . . Robots Built . | . . . . . . . Matter . | . . . . . . . Time . | . . . . . . . Total Robot Build Rating . | . . . . . . . Part Schematics Acquired 1 | . . . 1 . . . Parts Built . | . . . . . . . Matter . | . . . . . . . Time . | . . . . . . . Total Part Build Rating . | . . . . . . . Parts Repaired . | . . . . . . . Time . | . . . . . . . Parts Recycled . | . . . . . . . Recycled Matter . | . . . . . . . Retrieved Matter . | . . . . . . . Retrieved Components 10 | . . . 10 . . . Parts Scanalyzed . | . . . . . . . Part Schematics Acquired . | . . . . . . . Parts Damaged . | . . . . . . . Bothacking | -11 -10 -10 -9 -9 -9 -8 ------------ Run | Scr Mat Min Mat Min Exi Min Used RIF Installer . | . . . . . . . Robots Hacked 4 | . . . . . 4 . Non-combat 3 | . . . . . 3 . Combat 1 | . . . . . 1 . Robot Hacks Applied 5 | . . . . . 5 . parse_system 5 | . . . . . 5 . Relay Couplers Released . | . . . . . . . Robots Rewired . | . . . . . . . Allies Hacked . | . . . . . . . Hacks Repelled . | . . . . . . . Allies | -11 -10 -10 -9 -9 -9 -8 -------- Run | Scr Mat Min Mat Min Exi Min Total Allies 3 | . . . . 3 . . Largest Group 3 | . . . . 3 . . Highest-Rated Group 40 | . . . . 40 . . Highest-Rated Ally 16 | . . . . 16 . . Total Orders 1 | . . . . 1 . . GOTO 1 | . . . . 1 . . Ally Attacks 30 | . . . . 30 . . Total Damage 326 | . . . . 326 . . Kills 3 | . . . . 3 . . Allies Corrupted 1 | . . . . 1 . . Allies Melted . | . . . . . . . Intel | -11 -10 -10 -9 -9 -9 -8 ------- Run | Scr Mat Min Mat Min Exi Min Robot Analysis Total . | . . . . . . . Derelict Logs Recovered 3 | . . 1 . 2 . . Drone Launches . | . . . . . . . Drone Recoveries . | . . . . . . . Exploration | -11 -10 -10 -9 -9 -9 -8 ------------- Run | Scr Mat Min Mat Min Exi Min Turns Passed 6010 | 71 1110 543 1679 769 1292 546 Spaces Moved 3764 | 48 682 517 953 530 817 217 Core 3 | 3 . . . . . . Treads 654 | . 224 3 116 . 94 217 Legs . | . . . . . . . Wheels 3107 | 45 458 514 837 530 723 . Hover . | . . . . . . . Flight . | . . . . . . . Fastest Speed 50 | 50 80 100 100 120 100 200 Average Speed 130 | 78 122 100 126 128 140 216 Slowest Speed 220 | 80 180 180 200 130 200 220 Overloaded Moves . | . . . . . . . Propulsion Burnouts . | . . . . . . . Robots Hopped . | . . . . . . . Cave-ins Triggered . | . . . . . . . Exploration Rate (%) 70 | 3 93 95 85 99 62 59 Regions Visited 6 Branch Regions 4 Pre-discovered Areas 3 | . . . . 2 1 . Known Exits Taken . | . . . . . . . Unknown Exits Taken 6 | 1 1 1 1 1 1 . Scrap Searched 2 | . . 1 . 1 . . Spaces Dug 20 | . . . 3 5 3 9 Terrain Destroyed 150 | . . . 65 15 18 52 Melee 11 | . . . 3 5 3 . Projectile . | . . . . . . . AOE 139 | . . . 62 10 15 52 Actions | -11 -10 -10 -9 -9 -9 -8 --------- Run | Scr Mat Min Mat Min Exi Min Total 4458 | 69 844 528 1250 575 933 259 Wait 168 | . 52 1 97 9 . 9 Move 3758 | 47 681 516 952 529 816 217 Hop . | . . . . . . . Pick Up 104 | 6 14 1 28 8 43 4 Fast Attach 16 | 7 4 . 2 . 3 . Attach 14 | . . 1 7 . 2 4 Detach 4 | . . . 2 . 2 . Swap 85 | . 12 4 51 5 8 5 Drop 59 | . 10 . 23 1 25 . Fire 206 | 9 71 5 85 16 1 19 Melee 38 | . . . 3 7 28 . Ram . | . . . . . . . Kick . | . . . . . . . Crush 1 | . . . . . . 1 Escape Stasis . | . . . . . . . Rewire . | . . . . . . . Trap 5 | . . . . . 5 . Miscellaneous . | . . . . . . . Route ------- -11/Scrapyard -10/Materials (discovered 5 exits: *Mat x3 / [*Min x2]) -10/Mines -9/Materials (discovered 5 exits: [*Mat x3] / *Min / [*Sto]) -9/Mines (discovered 3 exits: [*Mat x2] / *Exi) -9/Exiles -8/Mines History --------- Turn | Location | Event 8 | -11/Scrapyard | Discovered new exit (range 15) 72 | -11/Scrapyard | Entered Materials 302 | -10/Materials | Build established: Mutant 521 | -10/Materials | Discovered new exit (range 12) 585 | -10/Materials | Discovered new exit (range 12) 786 | -10/Materials | Discovered new exit (range 15) 832 | -10/Materials | Discovered new exit (range 16) 979 | -10/Materials | Discovered new exit (range 10) 1182 | -10/Materials | Entered Mines 1199 | -10/Mines | Learned Materials stockpile data 1286 | -10/Mines | Received a Rocket Launcher from a helpful Derelict 1347 | -10/Mines | Discovered new exit (range 16) 1725 | -10/Mines | Entered Materials 1725 | -9/Materials | Evolved 2 slots: Utility x2 2052 | -9/Materials | Build established: Hauler-Mutant 2389 | -9/Materials | Discovered new exit (range 11) 2692 | -9/Materials | Discovered new exit (range 13) 2712 | -9/Materials | Discovered new exit (range 4) 2925 | -9/Materials | First assault squad dispatched 3007 | -9/Materials | Destroyed 9 combat bots 3012 | -9/Materials | Lost 3 parts (1p2w) 3149 | -9/Materials | Discovered new exit (range 8) 3392 | -9/Materials | Discovered new exit (range 8) 3404 | -9/Materials | Entered Mines 3427 | -9/Mines | Discovered new exit (range 9) 3455 | -9/Mines | Found a hidden stash of uninstalled traps 3507 | -9/Mines | Assisted by bots powering up and referring to "LRC-V3" 3630 | -9/Mines | Discovered new exit (range 13) 3640 | -9/Mines | Learned location of Storage (-9) 3695 | -9/Mines | Learned location of Zion (-6) 3907 | -9/Mines | Destroyed 7 combat bots 4167 | -9/Mines | Deemed a non-threat by the Exiles lab entrance 4167 | -9/Mines | Discovered new exit (range 5) 4173 | -9/Mines | Entered Exiles 4206 | -9/Exiles | Met 8R-AWN 4288 | -9/Exiles | Met EX-HEX 4380 | -9/Exiles | Met EX-BIN 4399 | -9/Exiles | Met EX-DEC 4790 | -9/Exiles | Discovered new exit (range 14) 5207 | -9/Exiles | Attacked by the Exiles 5211 | -9/Exiles | Core integrity fell below 50% 5267 | -9/Exiles | Destroyed 8R-AWN 5284 | -9/Exiles | Found 8R-AWN's Boregun 5294 | -9/Exiles | Found Exp. Targeting Computer 5465 | -9/Exiles | Entered Mines 5652 | -8/Mines | Lost 3 parts (2n1w) 6006 | -8/Mines | Core integrity fell below 20% 6011 | -8/Mines | Destroyed by G-50 Soldier with Heavy Laser Last Messages --------------- 05664_ System corrupted: Heat flow error (+173). 05684_ System corrupted: Matter fused (-8). 05685_ R-06 Scavenger collects Lgt. Nuclear Core. 05709_ System corrupted: Matter fused (-6). 05742_ System corrupted: Energy discharge (-77). 05773_ System corrupted: Heat flow error (+296). 05838_ K-01 Serf collects debris. 05860_ System corrupted: Matter fused (-10). 05860_ K-01 Serf collects debris. 05890_ 9CR=AA|UP7FBUEN0LVZP 05893_ K-01 Serf collects debris. 05932_ System corrupted: Matter fused (-8). 05932_ K-01 Serf collects debris. 05985_ K|ULJ18PPMT9=PEMP4VDUZR6BAMDK:OUV 06003_ C-30 ARC bursts open, deploying its payload. 06003_ G-50 Soldier unfolds itself. 06003_ G-47 Trooper unfolds itself. 06007_ System corrupted: Rocket Launcher targeting data glitched. 06007_ G-47 Trooper destroyed. 06009_ System corrupted: Rocket Launcher rejected. Map ----- +----------------------------------------------------+ | ?????????????????????????????????? | | ?????????????????????????????####? | | ????????????????????????????## ## | | ????????????????????????????# # | | ???????????????????####?????# # | | ??????????????????## ###??# | | ??????????????????# ##??# | | ??????????????????# #### | | ??????????????????# ## | | ???????????????????# | | ????????????????????# | | ????? ?????????????# | | ??# ???????????## | | ??# ??????????## | | ?## ??????????# ### | | ?# ??????????# ##?? | | ?# ??????????## ##?? | | ## g% ??????????# ##? | | ? g% ??????????# ### ## | | ?? * ??????????# ##?## # | | ??? ??????????# #???## # | | ???? ??????????# #????## # | | ????? ##??????### #?????## # | | ??????# #??????# #??????## # | | ??????# ##?????# #???????# # | | ??????# @ ##????# ###???????# # | | ??????# ##???# #????####?# # | | ??????## #?### #???## ## # | | ???????# #?# #???# # # | | ???????# ### ###???# # | | ???????# t #?????## # | | ???????## ##??????# | | ????????## ####??????## | | ?????????# #?????????# | | ?????????## ##?????????# | | ??????????####??????????# | | ????????????????????????# | | ????????????????????????# # | | ????????????????????????##### ## | | ????????????????????????????## ## | | ?????????????????????????????# | | ?????????????????????????????# | | ?????????????????????????????# | | ????????????????????????????# | | ??????????????????????????# | | ??????????????????????? | | ??????????????????????# | | ??????????????????????###### | | ???????????????????????????## ## | | ????????????????????????????# ##? | +----------------------------------------------------+ Best States ------------- Heat Dissipation 28 Energy Generation 14 Energy Capacity 275 Matter Stores 300 Matter Capacity 300 Sight Range 16 Terrain Scan Density 10 Armor Coverage 225 Evasion (%) 44 Armor Integrity Analysis 33 Recoil Reduction 2 Item Schematics ----------------- Armor Integrity Analyzer | -9/Materials | Hacked Robot Schematics ------------------ None Fabricated ------------ Nothing Alien Tech Used ----------------- None Achievements -------------- None Challenges ------------ None Game ------ Seed NullRemoteThruster Manual? 0 Play Time 01:00:19 Cumulative 973.8 hours Start 2020.03.20 @ 21:55:13 End 2020.03.20 @ 23:07:19 Sessions 1 Manual Loads 0 Difficulty Rogue Special Mode None Game No. 365 Rogue 365 Adventurer 0 Explorer 0 Win Type - Total 24 Types 13/1/7/0/0/0/3 Lore% 96 Gallery% 97 Achievement% 83 Wizard Run 0 Options --------- ASCII 0 Keyboard 0 Movement Vi Keybinds 0 Fullscreen 0 Font 12/Crisp Map View 76x50 Tactical HUD 1 Map Filters NONE Filters NONE Steam 1 RUN: 8c14bd32-07ab-4b8c-8ecd-b0b4671fc77c